bitfinex/quotes_SOLUSD_20241216
["timestamp","ask_amount","ask_price","bid_price","bid_amount"]
[1734376555520,0.11513294,218.94,218.86,6.593442]
[1734376555919,0.11513294,218.94,218.86,0.555742]
[1734376557046,0.11513294,218.92,218.86,0.555742]
[1734376557673,0.11513294,218.89,218.86,0.555742]
[1734376559658,0.11513294,218.89,218.79,0.68529381]
[1734376559951,0.11513294,218.91,218.79,0.68529381]
[1734376560316,0.11513294,218.89,218.79,0.68529381]
[1734376560750,0.11513294,218.93,218.81,23.776884]
[1734376560998,0.11513294,218.93,218.84,20.0]
[1734376561156,0.11513294,218.89,218.84,20.0]
[1734376561643,0.11513294,218.89,218.8,20.0]
[1734376562828,0.11513294,218.87,218.8,20.0]
[1734376563122,0.11513294,218.87,218.75,1.5495]
[1734376563123,0.11513294,218.85,218.75,1.5495]
[1734376563341,0.11513294,218.85,218.71,29.2224884]
[1734376563652,0.11513294,218.83,218.71,29.2224884]
[1734376564359,0.11513294,218.83,218.64,5.0]
[1734376564360,0.11513294,218.77,218.65,6.3231]
[1734376565284,6.5498,218.76,218.63,1.24145935]
[1734376565448,0.11513294,218.69,218.63,0.555742]
[1734376565641,0.11513294,218.64,218.63,0.555742]
[1734376567341,26.48725336,218.64,218.63,0.555742]
[1734376567541,0.8000773,218.64,218.63,0.555742]
[1734376568367,27.17219772,218.64,218.63,0.555742]
[1734376568579,0.8000773,218.64,218.63,0.555742]
[1734376569170,0.11513294,218.64,218.63,0.555742]
[1734376570382,0.11513294,218.58,218.47,20.0]
[1734376570686,0.11513294,218.58,218.46,0.68618962]
[1734376570877,0.11513294,218.58,218.46,23.776884]
[1734376571170,27.05706478,218.63,218.45,2.77833005]
[1734376571171,0.11513294,218.56,218.45,2.77833005]
[1734376571374,0.11513294,218.54,218.43,5.0124327]
[1734376571582,0.11513294,218.52,218.41,0.555742]
[1734376571948,0.11513294,218.56,218.42,0.68649769]
[1734376572172,0.11513294,218.58,218.45,0.12549]
[1734376572347,0.11513294,218.63,218.48,4.88486706]
[1734376572551,0.11513294,218.63,218.49,5.69852742]
[1734376572750,0.11513294,218.65,218.51,23.776884]
[1734376572953,0.11513294,218.63,218.53,23.776884]
[1734376573382,6.5506,218.65,218.57,23.776884]
[1734376573545,0.11513294,218.71,218.64,20.0]
[1734376573751,0.11513294,218.76,218.65,0.6858069]
[1734376573952,0.11513294,218.74,218.65,0.6858069]
[1734376574248,0.11513294,218.7,218.6,20.68574365]
[1734376574482,0.11513294,218.7,218.64,20.0]
[1734376574774,0.11513294,218.73,218.64,20.0]
[1734376575370,0.11513294,218.71,218.64,20.0]
[1734376575584,0.11513294,218.73,218.64,20.0]
[1734376575950,0.11513294,218.73,218.62,0.68584835]
[1734376576146,0.11513294,218.7,218.64,20.0]
[1734376576398,0.11513294,218.68,218.58,2.71252511]
[1734376576552,0.11513294,218.62,218.5,0.68613832]
[1734376576746,0.11513294,218.62,218.51,0.83683649]
[1734376577063,0.11513294,218.59,218.51,0.83683649]
[1734376577258,0.11513294,218.62,218.51,1.52304846]
[1734376577970,0.11513294,218.56,218.51,0.83683649]
[1734376578548,0.11513294,218.56,218.55,26.48944321]
[1734376579079,0.11513294,218.56,218.52,26.48944321]
[1734376579395,0.11513294,218.59,218.55,26.48944321]
[1734376579568,0.11513294,218.59,218.51,0.83683649]
[1734376579569,0.11513294,218.61,218.58,26.48944321]
[1734376579777,0.11513294,218.59,218.58,26.48944321]
[1734376580098,0.11513294,218.59,218.56,26.48944321]
[1734376580259,0.11513294,218.57,218.56,26.48944321]
[1734376580664,0.11513294,218.55,218.54,26.48944321]
[1734376581092,0.11513294,218.55,218.52,26.48944321]
[1734376581297,0.11513294,218.53,218.52,26.48944321]
[1734376581470,0.11513294,218.53,218.5,26.48944321]
[1734376581789,0.11513294,218.51,218.48,26.48944321]
[1734376582216,0.11513294,218.51,218.5,26.48944321]
[1734376583907,0.11513294,218.53,218.5,26.48944321]
[1734376584089,0.11513294,218.54,218.52,26.48944321]
[1734376584690,0.11513294,218.56,218.52,26.48944321]
[1734376584891,0.11513294,218.56,218.55,26.48944321]
[1734376585276,0.11513294,218.58,218.55,26.48944321]
[1734376585597,0.11513294,218.63,218.57,26.48944321]
[1734376585765,0.11513294,218.6,218.5,43.776884]
[1734376585965,0.11513294,218.6,218.51,0.68617254]
[1734376586373,0.11513294,218.6,218.51,20.68617254]
[1734376586692,0.11513294,218.65,218.62,20.0]
[1734376586897,0.11513294,218.65,218.63,26.48944321]
[1734376588573,0.11513294,218.62,218.61,26.48944321]
[1734376588774,0.11513294,218.62,218.59,26.48944321]
[1734376589167,0.11513294,218.6,218.59,26.48944321]
[1734376589372,0.11513294,218.56,218.53,26.48944321]
[1734376589901,0.11513294,218.54,218.46,26.48944321]
[1734376590565,0.11513294,218.51,218.46,26.48944321]
[1734376591103,0.11513294,218.55,218.5,26.48944321]
[1734376591395,0.11513294,218.55,218.53,26.48944321]
[1734376592199,0.11513294,218.57,218.54,26.48944321]
[1734376592389,0.11513294,218.59,218.56,26.48944321]
[1734376592571,0.11513294,218.59,218.53,20.0]
[1734376592895,0.11513294,218.54,218.46,0.68617761]
[1734376593097,0.11513294,218.54,218.47,20.0]
[1734376593292,5.0,218.66,218.41,2.75342927]
[1734376593293,0.11513294,218.52,218.41,2.75342927]
[1734376593492,0.11513294,218.5,218.41,0.555742]
[1734376594101,0.11513294,218.48,218.41,0.555742]
[1734376594592,6.3945,218.58,218.41,0.555742]
[1734376594593,0.11513294,218.46,218.41,0.555742]
[1734376594971,0.11513294,218.48,218.41,0.555742]
[1734376595673,0.11513294,218.5,218.41,0.555742]
[1734376595884,0.11513294,218.52,218.43,23.776884]
[1734376596198,0.11513294,218.54,218.43,23.776884]
[1734376596402,0.11513294,218.56,218.47,23.776884]
[1734376596573,0.11513294,218.56,218.46,20.68628019]
[1734376596893,0.11513294,218.58,218.46,0.68628019]
[1734376597101,7.807,218.65,218.5,20.0]
[1734376597102,0.11513294,218.6,218.5,20.0]
[1734376597397,0.11513294,218.58,218.5,20.68618261]
[1734376598293,0.11513294,218.58,218.5,20.0]
[1734376598527,0.11513294,218.61,218.51,0.68624729]
[1734376598681,0.11513294,218.59,218.51,0.68624729]
[1734376599507,0.11513294,218.61,218.51,0.68624729]
[1734376599776,0.11513294,218.63,218.52,23.776884]
[1734376599997,0.11513294,218.6,218.48,20.0]
[1734376600212,0.11513294,218.6,218.52,20.0]
[1734376600884,0.11513294,218.62,218.53,0.68614521]
[1734376601289,7.807,218.65,218.52,20.0]
[1734376601290,0.11513294,218.6,218.52,20.0]
[1734376601492,0.11513294,218.58,218.47,2.70245256]
[1734376601702,0.11513294,218.56,218.46,0.68626505]
[1734376601909,0.11513294,218.56,218.42,5.68631915]
[1734376602208,0.11513294,218.58,218.42,10.57118621]
[1734376602375,0.68494436,218.6,218.45,0.12549]
[1734376602376,0.11513294,218.6,218.45,0.12549]
[1734376602572,0.11513294,218.61,218.46,0.68618974]
[1734376602778,0.11513294,218.59,218.46,0.68618974]
[1734376603086,0.11513294,218.59,218.47,20.0]
[1734376603303,0.11513294,218.63,218.51,20.0]
[1734376603484,6.38903294,218.65,218.55,20.0]
[1734376603704,6.38903294,218.65,218.56,0.6860264]
[1734376603900,0.11513294,218.65,218.56,0.6860264]
[1734376604083,0.11513294,218.67,218.56,0.6860264]
[1734376604291,6.76174436,218.7,218.57,23.776884]
[1734376604292,0.11513294,218.69,218.57,23.776884]
[1734376604488,0.11513294,218.69,218.58,0.68589187]
[1734376604884,6.0768,218.7,218.62,20.0]
[1734376605096,2.51212536,218.75,218.62,20.0]
[1734376605097,0.11513294,218.73,218.63,0.68581221]
[1734376605397,1.827181,218.75,218.63,0.68581221]
[1734376605398,0.11513294,218.74,218.64,23.776884]
[1734376605700,0.11513294,218.7,218.59,23.776884]
[1734376605902,0.11513294,218.7,218.6,0.68584146]
[1734376606105,0.11513294,218.68,218.6,0.68584146]
[1734376606324,0.11513294,218.64,218.55,0.68590824]
[1734376606514,0.68494436,218.72,218.51,0.68607284]
[1734376606515,0.11513294,218.62,218.51,0.68607284]
[1734376607579,0.11513294,218.62,218.52,20.0]
[1734376608303,0.11513294,218.62,218.48,20.0]
[1734376608505,0.11513294,218.6,218.52,20.0]
[1734376608804,0.11513294,218.6,218.52,20.8367982]
[1734376609180,0.11513294,218.62,218.52,21.5229664]
[1734376609688,0.11513294,218.62,218.52,20.6861682]
[1734376610312,6.71643294,218.64,218.56,20.0]
[1734376610527,6.6013,218.64,218.56,20.0]
[1734376610821,0.11513294,218.66,218.56,20.68600474]
[1734376611118,7.31384436,218.7,218.56,20.68600474]
[1734376611119,0.11513294,218.64,218.56,20.68600474]
[1734376611429,0.11513294,218.66,218.56,20.68600474]
[1734376611798,6.74403294,218.7,218.6,20.0]
[1734376612015,6.74403294,218.7,218.61,0.68594591]
[1734376613242,6.6289,218.7,218.61,0.68594591]
[1734376613560,6.74403294,218.7,218.61,20.68594591]
[1734376613694,0.11513294,218.72,218.61,0.68594591]
[1734376613900,0.11513294,218.72,218.62,23.776884]
[1734376614131,0.11513294,218.7,218.61,20.68594591]
[1734376614714,0.11513294,218.7,218.58,23.776884]
[1734376614919,0.11513294,218.68,218.61,20.0]
[1734376615404,0.11513294,218.7,218.58,0.68593265]
[1734376615817,0.11513294,218.7,218.62,20.0]
[1734376616422,0.11513294,218.68,218.62,20.0]
[1734376616618,0.11513294,218.7,218.6,0.68585133]
[1734376616818,0.11513294,218.7,218.57,0.68588561]
[1734376617021,0.11513294,218.68,218.57,20.68588561]
[1734376617416,0.11513294,218.7,218.57,20.68588561]
[1734376617739,0.11513294,218.72,218.59,20.0]
[1734376618036,0.11513294,218.72,218.61,23.776884]
[1734376618205,0.11513294,218.72,218.62,0.68580036]
[1734376618843,0.11513294,218.69,218.59,20.68579815]
[1734376619141,34.88723643,218.75,218.59,20.68579815]
[1734376619142,0.11513294,218.71,218.63,20.0]
[1734376619835,0.11513294,218.7,218.6,0.68587297]
[1734376620133,0.11513294,218.68,218.6,0.68587297]
[1734376620312,0.11513294,218.68,218.58,20.0]
[1734376620313,0.11513294,218.68,218.62,20.0]
[1734376620511,0.11513294,218.7,218.62,20.0]
[1734376621818,0.11513294,218.72,218.62,20.0]
[1734376622147,0.11513294,218.72,218.63,23.776884]
[1734376622439,0.11513294,218.72,218.64,0.68575042]
[1734376622811,0.11513294,218.7,218.63,20.0]
[1734376623034,0.11513294,218.72,218.64,0.68589463]
[1734376623419,0.11513294,218.8,218.69,23.776884]
[1734376623622,0.11513294,218.8,218.72,20.0]
[1734376623920,0.11513294,218.78,218.66,0.68550691]
[1734376624127,0.11513294,218.78,218.67,43.776884]
[1734376624331,0.11513294,218.76,218.68,0.68562454]
[1734376624844,0.11513294,218.78,218.68,0.68562454]
[1734376625139,0.11513294,218.76,218.68,0.68562454]
[1734376625648,0.11513294,218.74,218.64,20.0]
[1734376625819,0.11513294,218.69,218.59,2.77571176]
[1734376626013,0.11513294,218.69,218.55,0.68587594]
[1734376626215,0.11513294,218.67,218.56,2.69736837]
[1734376626522,0.11513294,218.67,218.51,11.87190849]
[1734376626523,0.11513294,218.63,218.51,6.3011]
[1734376626737,0.11513294,218.59,218.47,5.59021048]
[1734376626945,6.57503294,218.57,218.41,1.24181772]
[1734376627113,6.57503294,218.57,218.44,2.68613733]
[1734376627114,0.11513294,218.54,218.44,2.68613733]
[1734376627540,0.11513294,218.54,218.41,1.24181772]
[1734376628139,0.11513294,218.51,218.41,1.24181772]
[1734376628348,0.11513294,218.51,218.42,20.0]
[1734376628581,0.11513294,218.51,218.41,1.24181772]
[1734376629346,0.11513294,218.49,218.41,1.24181772]
[1734376629530,0.68494436,218.55,218.41,1.24181772]
[1734376629531,0.11513294,218.51,218.41,1.24181772]
[1734376630137,0.11513294,218.51,218.42,20.0]
[1734376630450,0.11513294,218.53,218.43,0.68647931]
[1734376631321,0.11513294,218.53,218.42,20.0]
[1734376631518,0.11513294,218.49,218.42,20.0]
[1734376631723,0.11513294,218.51,218.42,20.0]
[1734376632023,0.11513294,218.49,218.41,0.555742]
[1734376633147,0.11513294,218.45,218.41,0.555742]
[1734376633451,0.11513294,218.43,218.41,0.555742]
[1734376635356,6.61173294,218.45,218.41,0.555742]
[1734376636355,0.11513294,218.49,218.41,0.555742]
[1734376636543,6.4966,218.5,218.41,0.555742]
[1734376636544,6.4966,218.5,218.42,0.68648254]
[1734376636914,0.11513294,218.46,218.41,0.555742]
[1734376637151,0.11513294,218.48,218.41,0.555742]
[1734376637340,6.61173294,218.5,218.41,0.555742]
[1734376637547,6.61173294,218.5,218.42,0.68655659]
[1734376637923,6.61173294,218.5,218.41,0.555742]
[1734376638455,6.4966,218.5,218.42,20.68650064]
[1734376638656,1.62183294,218.52,218.42,20.68650064]
[1734376638951,0.11513294,218.51,218.46,20.0]
[1734376639154,6.4966,218.55,218.46,20.0]
[1734376639155,0.11513294,218.53,218.46,20.0]
[1734376639471,6.4966,218.55,218.47,0.68639892]
[1734376639665,1.62183294,218.57,218.47,20.68639892]
[1734376640851,1.62183294,218.57,218.48,23.776884]
[1734376641075,0.11513294,218.57,218.48,23.776884]
[1734376641918,0.11513294,218.55,218.47,20.68639892]
[1734376642124,0.11513294,218.55,218.44,23.776884]
[1734376642547,0.11513294,218.54,218.47,20.0]
[1734376642720,0.11513294,218.54,218.43,20.6863192]
[1734376642931,0.11513294,218.52,218.43,20.6863192]
[1734376643133,0.11513294,218.52,218.43,0.6863192]
[1734376643334,0.11513294,218.52,218.41,0.555742]
[1734376643584,0.11513294,218.52,218.41,1.24219176]
[1734376644634,0.11513294,218.52,218.42,20.0]
[1734376644940,0.11513294,218.5,218.42,20.0]
[1734376645351,0.11513294,218.48,218.41,0.555742]
[1734376648179,0.11513294,218.5,218.41,0.555742]
[1734376649086,0.11513294,218.52,218.43,20.0]
[1734376649888,0.11513294,218.54,218.44,24.46331664]
[1734376650290,6.4966,218.6,218.44,24.46331664]
[1734376650291,0.11513294,218.56,218.47,20.0]
[1734376650997,0.11513294,218.54,218.47,20.0]
[1734376651574,0.11513294,218.51,218.41,0.555742]
[1734376651798,0.11513294,218.51,218.42,20.0]
[1734376652096,0.11513294,218.53,218.43,24.46325985]
[1734376652395,0.11513294,218.55,218.43,24.46325985]
[1734376652569,0.11513294,218.52,218.43,24.46325985]
[1734376652993,0.11513294,218.48,218.41,0.555742]
[1734376653601,0.68494436,218.5,218.41,0.555742]
[1734376653602,0.11513294,218.46,218.41,0.555742]
[1734376654263,0.11513294,218.43,218.41,0.555742]
[1734376654888,43.07536426,218.47,218.41,0.555742]
[1734376654889,0.11513294,218.47,218.41,0.555742]
[1734376655613,0.11513294,218.45,218.41,0.555742]
[1734376658369,0.11513294,218.43,218.41,0.555742]
[1734376659896,0.11513294,218.45,218.41,0.555742]
[1734376661216,0.11513294,218.43,218.41,0.555742]
[1734376661817,0.11513294,218.45,218.41,0.555742]
[1734376662934,0.11513294,218.43,218.41,0.555742]
[1734376663532,27.32064327,218.43,218.41,0.555742]
[1734376663732,0.11513294,218.43,218.41,0.555742]
[1734376665138,0.11513294,218.45,218.41,0.555742]
[1734376665437,34.31856597,218.51,218.41,0.555742]
[1734376665438,0.11513294,218.47,218.41,0.555742]
[1734376665799,0.11513294,218.47,218.42,23.776884]
[1734376666032,8.48294436,218.51,218.41,1.065742]
[1734376666033,0.11513294,218.44,218.41,1.065742]
[1734376666237,26.63569891,218.42,218.41,1.065742]
[1734376666601,0.11513294,218.42,218.41,1.065742]
[1734376667052,0.11513294,218.43,218.41,0.555742]
[1734376667221,0.11513294,218.45,218.41,0.555742]
[1734376667802,0.11513294,218.47,218.41,0.555742]
[1734376668351,0.11513294,218.5,218.41,0.555742]
[1734376668636,0.11513294,218.52,218.42,0.68648534]
[1734376668939,0.11513294,218.54,218.43,23.776884]
[1734376669143,0.11513294,218.5,218.45,23.776884]
[1734376669310,0.11513294,218.46,218.41,7.07713323]
[1734376669508,0.11513294,218.46,218.41,0.555742]
[1734376669933,0.11513294,218.44,218.41,0.555742]
[1734376670634,0.11513294,218.48,218.41,0.555742]
[1734376671221,0.11513294,218.48,218.43,0.51]
[1734376671637,0.11513294,218.44,218.43,0.51]
[1734376672418,0.11513294,218.46,218.43,0.51]
[1734376673125,27.20551033,218.51,218.43,0.51]
[1734376673126,0.11513294,218.44,218.43,0.51]
[1734376673438,6.67913294,218.36,218.15,13.01766706]
[1734376673618,0.11513294,218.3,218.18,5.0]
[1734376673821,0.11513294,218.32,218.19,1.24285909]
[1734376674055,0.11513294,218.34,218.2,4.88486706]
[1734376674354,0.11513294,218.34,218.21,0.68698409]
[1734376674849,0.11513294,218.32,218.21,0.68698409]
[1734376675065,0.11513294,218.34,218.21,0.68698409]
[1734376675220,0.11513294,218.32,218.21,0.68698409]
[1734376675422,0.11513294,218.3,218.19,0.555742]
[1734376676251,0.11513294,218.22,218.19,0.555742]
[1734376676852,0.11513294,218.2,218.19,0.555742]
[1734376677270,26.52056597,218.26,218.19,0.555742]
[1734376677445,0.3000773,218.25,218.19,0.555742]
[1734376678249,1.8616773,218.29,218.19,0.555742]
[1734376678449,1.5616,218.29,218.19,0.555742]
[1734376678960,0.3000773,218.3,218.19,0.555742]
[1734376679372,26.82064327,218.3,218.19,0.555742]
[1734376679538,26.52056597,218.24,218.19,0.555742]
[1734376679738,26.52056597,218.26,218.19,0.555742]
[1734376680049,0.3000773,218.25,218.19,0.555742]
[1734376681438,26.52056597,218.24,218.19,0.555742]
[1734376681640,0.3000773,218.23,218.19,0.555742]
[1734376682040,6.503,218.24,218.19,0.555742]
[1734376682238,26.52056597,218.23,218.19,0.555742]
[1734376683167,6.503,218.24,218.19,0.555742]
[1734376683742,26.52056597,218.27,218.19,0.555742]
[1734376684166,26.52056597,218.26,218.19,0.555742]
[1734376684373,26.52056597,218.23,218.19,0.555742]
[1734376684832,71.2,218.27,218.19,0.555742]
[1734376685052,97.72056597,218.27,218.19,0.555742]
[1734376685255,26.52056597,218.26,218.19,0.555742]
[1734376685458,6.4749,218.28,218.19,0.555742]
[1734376685459,32.99546597,218.28,218.19,0.555742]
[1734376686192,6.0663,218.34,218.19,0.555742]
[1734376686388,26.52056597,218.33,218.2,20.68721953]
[1734376686583,26.52056597,218.32,218.21,23.776884]
[1734376686890,26.52056597,218.33,218.21,23.776884]
[1734376687085,32.58686597,218.34,218.21,23.776884]
[1734376687468,26.52056597,218.36,218.21,23.776884]
[1734376687798,26.52056597,218.43,218.31,23.776884]
[1734376688279,33.11036597,218.45,218.35,23.776884]
[1734376688785,6.5898,218.45,218.35,23.776884]
[1734376688950,26.52056597,218.47,218.35,23.776884]
[1734376689356,6.5448,218.5,218.35,23.776884]
[1734376689551,1.5179,218.53,218.39,23.776884]
[1734376689552,26.52056597,218.51,218.39,23.776884]
[1734376689785,26.52056597,218.53,218.39,23.776884]
[1734376689993,26.52056597,218.4,218.16,6.3474]
[1734376690153,26.52056597,218.35,218.29,1.81100269]
[1734376690357,26.52056597,218.37,218.29,1.81100269]
[1734376690590,26.52056597,218.37,218.19,2.126542]
[1734376690881,26.52056597,218.35,218.19,2.126542]
[1734376691181,26.52056597,218.31,218.19,2.126542]
[1734376691362,26.52056597,218.33,218.19,2.126542]
[1734376691558,26.52056597,218.35,218.19,2.126542]
[1734376692183,1.5624,218.39,218.19,2.126542]
[1734376692184,26.52056597,218.37,218.19,2.126542]
[1734376692350,28.08296597,218.39,218.19,2.81369125]
[1734376692567,26.52056597,218.37,218.19,2.81369125]
[1734376692787,26.52056597,218.35,218.21,20.0]
[1734376692989,26.52056597,218.37,218.19,22.126542]
[1734376693190,26.52056597,218.37,218.23,23.776884]
[1734376693399,26.52056597,218.37,218.21,23.776884]
[1734376693769,26.52056597,218.37,218.25,23.776884]
[1734376694476,26.52056597,218.39,218.25,23.776884]
[1734376694670,26.52056597,218.41,218.29,23.776884]
[1734376695684,6.0221,218.43,218.26,20.0]
[1734376695685,26.52056597,218.39,218.26,20.0]
[1734376695881,26.52056597,218.37,218.19,2.126542]
[1734376696078,26.52056597,218.33,218.19,2.126542]
[1734376696778,26.52056597,218.37,218.2,0.68718622]
[1734376697182,26.52056597,218.37,218.19,2.126542]
[1734376697518,26.52056597,218.37,218.2,23.776884]
[1734376697723,71.2,218.42,218.2,24.46397021]
[1734376697724,26.52056597,218.39,218.2,24.46397021]
[1734376698024,26.52056597,218.33,218.19,22.126542]
[1734376698226,5.0,218.39,218.19,2.126542]
[1734376698227,26.52056597,218.31,218.19,2.126542]
[1734376698426,26.52056597,218.29,218.19,2.126542]
[1734376698733,26.52056597,218.29,218.19,0.555742]
[1734376699692,26.52056597,218.31,218.19,0.555742]
[1734376699920,26.52056597,218.32,218.19,0.555742]
[1734376700739,26.52056597,218.34,218.19,0.555742]
[1734376700925,26.52056597,218.35,218.21,23.776884]
[1734376701120,26.52056597,218.33,218.21,23.776884]
[1734376701332,26.52056597,218.33,218.2,20.0]
[1734376701533,26.52056597,218.29,218.19,0.555742]
[1734376701748,71.2,218.36,218.19,0.555742]
[1734376701945,26.52056597,218.32,218.19,0.555742]
[1734376702847,26.52056597,218.32,218.2,20.0]
[1734376703017,26.52056597,218.32,218.21,23.776884]
[1734376704032,26.52056597,218.29,218.19,0.555742]
[1734376704221,26.52056597,218.25,218.19,0.555742]
[1734376704622,11.2099,218.31,218.19,0.555742]
[1734376704623,26.52056597,218.26,218.19,0.555742]
[1734376706337,11.2099,218.31,218.19,0.555742]
[1734376706338,26.52056597,218.28,218.19,0.555742]
[1734376706547,26.52056597,218.29,218.19,0.555742]
[1734376707429,26.52056597,218.27,218.19,0.555742]
[1734376707635,26.52056597,218.29,218.19,0.555742]
[1734376708214,26.52056597,218.27,218.19,0.555742]
[1734376708515,29.33512286,218.31,218.19,0.555742]
[1734376708714,26.52056597,218.36,218.19,0.555742]
[1734376709012,26.52056597,218.36,218.21,6.5499]
[1734376709522,26.52056597,218.36,218.22,23.776884]
[1734376710235,26.52056597,218.34,218.22,23.776884]
[1734376710754,26.52056597,218.35,218.22,23.776884]
[1734376711556,26.52056597,218.32,218.22,23.776884]
[1734376711847,26.52056597,218.3,218.21,6.5499]
[1734376712061,26.52056597,218.26,218.19,0.555742]
[1734376712843,26.52056597,218.31,218.19,0.555742]
[1734376713053,26.52056597,218.32,218.19,0.555742]
[1734376713238,26.52056597,218.33,218.19,0.555742]
[1734376713548,26.52056597,218.36,218.21,23.776884]
[1734376713849,77.5446,218.42,218.25,23.776884]
[1734376713850,6.3446,218.42,218.25,23.776884]
[1734376714027,71.2,218.46,218.3,20.0]
[1734376714233,26.52056597,218.44,218.31,23.776884]
[1734376714437,26.52056597,218.43,218.31,23.776884]
[1734376714646,26.52056597,218.4,218.29,23.776884]
[1734376714945,26.52056597,218.44,218.29,23.776884]
[1734376715344,26.52056597,218.43,218.29,23.776884]
[1734376716735,26.52056597,218.42,218.29,23.776884]
[1734376717460,52.589593,218.35,218.29,23.776884]
[1734376718362,52.589593,218.35,218.33,23.776884]
[1734376718932,50.922993,218.35,218.34,29.811884]
[1734376719354,26.52056597,218.51,218.39,23.776884]
[1734376719543,50.94089997,218.53,218.39,23.776884]
[1734376719747,44.81419997,218.53,218.39,25.313784]
[1734376720257,26.52056597,218.56,218.43,23.776884]
[1734376720454,18.290828,218.56,218.46,20.0]
[1734376720760,72.8274,218.62,218.46,20.0]
[1734376720761,26.52056597,218.61,218.49,23.776884]
[1734376720967,44.80756397,218.61,218.49,23.776884]
[1734376721149,26.52056597,218.6,218.49,23.776884]
[1734376721543,18.285969,218.62,218.49,23.776884]
[1734376721776,26.52056597,218.64,218.49,23.776884]
[1734376722072,6.1267,218.67,218.48,6.035]
[1734376722073,26.52056597,218.63,218.53,23.776884]
[1734376722367,18.283642,218.65,218.53,23.776884]
[1734376722368,26.52056597,218.62,218.53,23.776884]
[1734376722589,26.52056597,218.63,218.53,23.776884]
[1734376722882,26.52056597,218.64,218.52,23.776884]
[1734376723383,26.52056597,218.65,218.52,23.776884]
[1734376723672,26.52056597,218.64,218.52,23.776884]
[1734376723884,26.52056597,218.65,218.52,23.776884]
[1734376724174,26.52056597,218.64,218.52,23.776884]
[1734376724649,26.52056597,218.65,218.52,23.776884]
[1734376725062,26.52056597,218.64,218.52,23.776884]
[1734376725882,26.52056597,218.65,218.52,23.776884]
[1734376726984,26.52056597,218.64,218.52,23.776884]
[1734376727311,26.52056597,218.62,218.52,23.776884]
[1734376727470,26.52056597,218.57,218.51,1.6365]
[1734376727784,26.52056597,218.57,218.29,13.72]
[1734376727785,26.52056597,218.53,218.45,1.5391]
[1734376728149,26.52056597,218.51,218.43,6.4173]
[1734376728377,26.52056597,218.57,218.43,6.4173]
[1734376728378,26.52056597,218.49,218.43,6.4173]
[1734376728555,26.52056597,218.49,218.39,1.5391]
[1734376728556,26.52056597,218.48,218.39,1.5391]
[1734376729071,26.52056597,218.5,218.39,1.5391]
[1734376729279,26.52056597,218.48,218.39,1.5391]
[1734376729456,26.52056597,218.47,218.38,6.4173]
[1734376729659,26.52056597,218.48,218.38,6.4173]
[1734376730385,26.52056597,218.46,218.38,6.4173]
[1734376731489,26.52056597,218.51,218.38,6.4173]
[1734376732152,26.52056597,218.5,218.39,23.776884]
[1734376732679,26.52056597,218.49,218.39,23.776884]
[1734376733057,26.52056597,218.48,218.39,23.776884]
[1734376733865,26.52056597,218.49,218.38,6.4173]
[1734376734088,26.52056597,218.49,218.39,23.776884]
[1734376734454,26.52056597,218.5,218.39,23.776884]
[1734376735059,26.52056597,218.51,218.39,23.776884]
[1734376735291,2.75084457,218.54,218.39,23.776884]
[1734376735457,26.52056597,218.48,218.39,23.776884]
[1734376735651,26.52056597,218.49,218.39,23.776884]
[1734376735856,26.52056597,218.46,218.38,6.4173]
[1734376736083,26.52056597,218.46,218.33,1.5527]
[1734376736084,26.52056597,218.44,218.33,7.7066]
[1734376736254,71.2,218.52,218.33,7.7066]
[1734376736453,26.52056597,218.47,218.33,7.7066]
[1734376736885,26.52056597,218.48,218.33,7.7066]
[1734376737075,26.52056597,218.49,218.33,7.7066]
[1734376737459,26.52056597,218.49,218.36,20.0]
[1734376737659,26.52056597,218.5,218.37,23.776884]
[1734376737963,26.52056597,218.51,218.37,23.776884]
[1734376739261,26.52056597,218.51,218.4,20.0]
[1734376739586,1.82717461,218.65,218.37,23.776884]
[1734376739587,26.52056597,218.58,218.47,23.776884]
[1734376740090,26.52056597,218.57,218.46,6.4233]
[1734376740601,26.52056597,218.6,218.47,25.307284]
[1734376740800,26.52056597,218.61,218.47,25.307284]
[1734376741087,26.52056597,218.54,218.46,6.4233]
[1734376741344,26.52056597,218.52,218.42,23.776884]
[1734376741491,26.52056597,218.52,218.41,6.4009]
[1734376741796,26.52056597,218.51,218.41,6.4009]
[1734376742090,26.51588169,218.51,218.44,26.51588169]
[1734376742265,26.51588169,218.52,218.45,26.51588169]